bitfinex-derivatives/quotes_BTCF0:USTF0_20260113
["timestamp","ask_amount","ask_price","bid_price","bid_amount"]
[1768340000474,0.19137373,94395.0,94373.0,0.09650174]
[1768340000475,0.19137373,94386.0,94364.0,0.09650174]
[1768340000675,0.09295676,94386.0,94367.0,0.09650174]
[1768340002182,0.19191872,94390.0,94370.0,0.19000349]
[1768340002678,0.09295676,94392.0,94371.0,0.09650174]
[1768340002976,0.09295676,94392.0,94371.0,0.19098768]
[1768340003282,0.09350175,94390.0,94371.0,0.19098768]
[1768340003978,0.19137373,94392.0,94372.0,0.010598]
[1768340004181,0.09350175,94390.0,94372.0,0.010598]
[1768340004979,0.19137373,94392.0,94372.0,0.010598]
[1768340005182,0.09350175,94390.0,94372.0,0.07309974]
[1768340007478,0.09350175,94390.0,94373.0,0.00529813]
[1768340008586,0.28487548,94390.0,94373.0,0.00529813]
[1768340008782,0.09841697,94389.0,94373.0,0.00529813]
[1768340009481,0.09350175,94383.0,94373.0,0.00529813]
[1768340009783,0.19137373,94386.0,94373.0,0.00529813]
[1768340010080,0.19137373,94385.0,94373.0,0.00529813]
[1768340010276,0.09841697,94381.0,94361.0,0.010599]
[1768340010472,0.0954,94396.0,94369.0,0.09650174]
[1768340010676,0.09350175,94390.0,94371.0,0.19098768]
[1768340011380,0.19191872,94390.0,94371.0,0.19098768]
[1768340012893,0.19191872,94390.0,94371.0,0.15598767]
[1768340014586,0.09841697,94401.0,94372.0,0.09448594]
[1768340014787,0.09841697,94399.0,94380.0,0.09350175]
[1768340014986,0.09841697,94399.0,94378.0,0.09446052]
[1768340015294,0.18902455,94398.0,94378.0,0.09446052]
[1768340015496,0.09231821,94397.0,94378.0,0.09446052]
[1768340019595,0.005297,94393.0,94378.0,0.09446052]
[1768340019897,0.005297,94393.0,94375.0,0.09446052]
[1768340020686,0.005297,94393.0,94375.0,0.08146052]
[1768340022896,0.005297,94393.0,94376.0,0.010598]
[1768340023098,0.005297,94393.0,94376.0,0.10505852]
[1768340023701,0.005297,94393.0,94376.0,0.09446052]
[1768340023999,0.18581996,94390.0,94374.0,0.0954]
[1768340024787,0.09231821,94389.0,94374.0,0.0954]
[1768340028401,0.09231821,94389.0,94374.0,0.0714]
[1768340029395,0.09231821,94387.0,94371.0,0.0954]
[1768340031105,0.09231821,94386.0,94371.0,0.0954]
[1768340032007,0.18581996,94381.0,94359.0,0.09446052]
[1768340032207,0.09231821,94378.0,94360.0,0.0954]
[1768340032508,0.09231821,94378.0,94360.0,0.19950075]
[1768340032705,0.09231821,94378.0,94360.0,0.29396127]
[1768340032907,0.09670634,94379.0,94360.0,0.29396127]
[1768340033800,0.09670634,94379.0,94360.0,0.20045952]
[1768340034712,0.09231821,94378.0,94360.0,0.0954]
[1768340035307,0.09231821,94377.0,94360.0,0.0954]
[1768340035804,0.09231821,94377.0,94359.0,0.105999]
[1768340035999,0.09231821,94377.0,94359.0,0.072999]
[1768340036503,0.09231821,94384.0,94362.0,0.09446052]
[1768340036699,0.09350175,94380.0,94362.0,0.09446052]
[1768340037100,0.010598,94375.0,94362.0,0.09446052]
[1768340037510,0.010598,94373.0,94359.0,0.072999]
[1768340037712,0.010598,94376.0,94360.0,0.09446052]
[1768340037911,0.010598,94376.0,94361.0,0.09446052]
[1768340038812,0.010598,94376.0,94362.0,0.09307365]
[1768340039313,0.010598,94376.0,94363.0,0.09446052]
[1768340039904,0.09350175,94380.0,94363.0,0.09446052]
[1768340040104,0.010597,94378.0,94364.0,0.09446052]
[1768340040815,0.010597,94378.0,94364.0,0.18753417]
[1768340041012,0.010597,94378.0,94365.0,0.09446052]
[1768340041905,0.09231821,94386.0,94366.0,0.09446052]
[1768340042101,0.09350175,94380.0,94366.0,0.09446052]
[1768340042404,0.10409875,94380.0,94366.0,0.09446052]
[1768340042806,0.09350175,94380.0,94366.0,0.09446052]
[1768340043012,0.09350175,94380.0,94362.0,0.09446052]
[1768340043713,0.09350175,94380.0,94362.0,0.06846052]
[1768340044614,0.09350175,94380.0,94363.0,0.010599]
[1768340044815,0.010597,94379.0,94362.0,0.06846052]
[1768340045011,0.09350175,94372.0,94361.0,0.0954]
[1768340045206,0.09350175,94372.0,94354.0,0.14544]
[1768340045207,0.010598,94369.0,94354.0,0.14544]
[1768340045815,0.010599,94367.0,94354.0,0.24360687]
[1768340046016,0.010598,94370.0,94354.0,0.24360687]
[1768340046212,0.010598,94370.0,94355.0,0.09816687]
[1768340046526,0.010598,94370.0,94356.0,0.09816687]
[1768340046717,0.010598,94370.0,94356.0,0.19621785]
[1768340047016,0.010598,94371.0,94360.0,0.09816687]
[1768340047614,0.010598,94373.0,94361.0,0.19621785]
[1768340048204,0.010598,94373.0,94355.0,0.19621785]
[1768340048415,0.010598,94371.0,94356.0,0.09816687]
[1768340048615,0.09506907,94413.0,94383.0,0.0925907]
[1768340048917,0.09506907,94414.0,94393.0,0.19064168]
[1768340049116,0.010594,94409.0,94393.0,0.09805098]
[1768340049312,0.09506907,94412.0,94393.0,0.09805098]
[1768340049516,1.10314907,94411.0,94393.0,0.09805098]
[1768340049710,0.010594,94408.0,94389.0,0.19064168]
[1768340049909,0.923234,94408.0,94390.0,0.19064168]
[1768340050109,0.09544,94407.0,94390.0,0.19064168]
[1768340051010,0.09544,94407.0,94392.0,0.19621785]
[1768340051413,0.09506907,94406.0,94386.0,0.09564698]
[1768340051817,0.09506907,94406.0,94388.0,0.010596]
[1768340052219,0.09506907,94406.0,94386.0,0.09564698]
[1768340052220,0.09506907,94405.0,94386.0,0.09564698]
[1768340052916,0.19004521,94405.0,94385.0,0.010596]
[1768340053121,0.09506907,94404.0,94385.0,0.010596]
[1768340053321,0.09506907,94401.0,94379.0,0.09804799]
[1768340053620,0.09506907,94398.0,94379.0,0.05059135]
[1768340053822,0.09506907,94386.0,94365.0,0.14864852]
[1768340054014,0.0954,94385.0,94365.0,0.14864852]
[1768340054213,0.0954,94385.0,94365.0,0.09805098]
[1768340054414,0.09506907,94382.0,94365.0,0.05059835]
[1768340054614,1.10302907,94381.0,94365.0,0.05059835]
[1768340055222,1.00796,94381.0,94365.0,0.05059835]
[1768340055622,1.05062472,94381.0,94365.0,0.05009223]
[1768340055813,1.05062472,94381.0,94366.0,0.010599]
[1768340056121,1.05062472,94381.0,94365.0,0.05009223]
[1768340056628,1.00796,94381.0,94365.0,0.010599]
[1768340057014,1.05063875,94381.0,94365.0,0.0614304]
[1768340057220,1.05063875,94381.0,94365.0,0.0508314]
[1768340057823,1.05050995,94381.0,94365.0,0.04995244]
[1768340058821,1.00796,94381.0,94364.0,0.09816687]
[1768340059216,1.00796,94381.0,94364.0,0.07016687]
[1768340059624,1.05027314,94381.0,94365.0,0.0500871]
[1768340060018,0.010597,94380.0,94364.0,0.07016687]
[1768340060322,1.04971529,94381.0,94373.0,0.00529813]
[1768340061928,1.05065593,94381.0,94373.0,0.05512907]
[1768340062224,1.00796,94381.0,94365.0,0.18878939]
[1768340062425,1.05065593,94381.0,94365.0,0.23862033]
[1768340063226,1.04944326,94381.0,94365.0,0.23963051]
[1768340063531,0.04148326,94381.0,94365.0,0.23963051]
[1768340063728,0.04148326,94381.0,94371.0,0.09414238]
[1768340064026,0.48608326,94380.0,94371.0,0.1449835]
[1768340064326,0.38572,94379.0,94371.0,0.1449835]
[1768340064926,0.0954,94378.0,94371.0,0.14440866]
[1768340065313,0.13737749,94378.0,94371.0,0.1444844]
[1768340065521,0.13737749,94378.0,94371.0,0.05034202]
[1768340066026,0.04197749,94378.0,94371.0,0.05034202]
[1768340066328,0.0954,94377.0,94371.0,0.05034202]
[1768340066831,0.0954,94377.0,94370.0,0.09464701]
[1768340067720,0.0954,94376.0,94370.0,0.1448996]
[1768340067926,0.0954,94376.0,94372.0,0.09464701]
[1768340068113,0.13662167,94376.0,94373.0,0.09464701]
[1768340068727,0.91268,94379.0,94374.0,4e-05]
[1768340068933,0.0954,94378.0,94374.0,4e-05]
[1768340069123,0.0954,94378.0,94369.0,0.01771434]
[1768340069521,0.0954,94378.0,94368.0,0.09464701]
[1768340069725,0.0954,94378.0,94362.0,0.09464701]
[1768340069916,0.09617589,94377.0,94356.0,0.11249056]
[1768340070230,0.09617589,94377.0,94356.0,0.09464701]
[1768340070231,0.09617589,94376.0,94356.0,0.09464701]
[1768340070534,0.09617589,94376.0,94356.0,0.1459475]
[1768340070830,0.09617589,94376.0,94356.0,0.16379105]
[1768340071226,0.09617589,94376.0,94356.0,0.17439105]
[1768340071434,0.13873426,94376.0,94358.0,0.0106]
[1768340071632,0.19553831,94391.0,94373.0,4e-05]
[1768340071821,1.20361831,94390.0,94373.0,4e-05]
[1768340072017,0.09617589,94384.0,94365.0,0.06900481]
[1768340072233,0.09617589,94382.0,94365.0,0.01784355]
[1768340072531,0.010598,94376.0,94365.0,0.06897766]
[1768340072720,0.13799104,94375.0,94365.0,0.06897766]
[1768340072916,0.91268,94374.0,94365.0,0.06897766]
[1768340073529,0.91268,94374.0,94365.0,0.05113411]
[1768340074332,0.95415618,94374.0,94365.0,0.04959573]
[1768340074534,0.91268,94374.0,94362.0,0.09464701]
[1768340074726,0.09617589,94373.0,94365.0,0.04377473]
[1768340074920,1.00848124,94374.0,94354.0,0.0606]
[1768340075125,1.00848124,94374.0,94354.0,0.05]
[1768340075531,0.09580124,94372.0,94354.0,0.05]
[1768340075834,0.09580124,94370.0,94354.0,0.05]
[1768340077425,0.09580124,94370.0,94343.0,0.05065123]
[1768340077426,0.09477017,94363.0,94343.0,0.05065123]
[1768340077628,0.09352714,94370.0,94343.0,0.05065123]
[1768340077629,0.09580124,94358.0,94343.0,0.05065123]
[1768340077824,0.09580124,94358.0,94334.0,0.060602]
[1768340077825,0.09580124,94356.0,94344.0,0.10065849]
[1768340078229,0.09580124,94356.0,94344.0,0.10065836]
[1768340078727,0.09580124,94355.0,94344.0,0.10065836]
[1768340078930,0.09580124,94355.0,94344.0,0.05]
[1768340079229,0.09580124,94355.0,94344.0,0.09962196]
[1768340079926,0.09580124,94355.0,94344.0,0.10135987]
[1768340080334,0.0106,94353.0,94344.0,0.10135987]
[1768340080737,0.0106,94354.0,94344.0,0.10135987]
[1768340081128,0.0106,94354.0,94344.0,0.05]
[1768340081328,0.0106,94354.0,94344.0,0.10025538]
[1768340081523,0.0106,94354.0,94344.0,0.05]
[1768340081823,0.0106,94354.0,94344.0,0.10025538]
[1768340082137,0.0106,94352.0,94344.0,0.10025538]
[1768340082343,0.010601,94343.0,94325.0,0.010603]
[1768340082526,1.00824,94342.0,94324.0,0.041603]
[1768340083234,8.28e-05,94341.0,94324.0,0.041603]
[1768340083433,8.28e-05,94341.0,94327.0,0.010603]
[1768340083638,8.28e-05,94341.0,94327.0,0.061459]
[1768340083838,0.09580124,94340.0,94324.0,0.041603]
[1768340084045,0.010603,94332.0,94318.0,0.050856]
[1768340084237,0.010603,94328.0,94318.0,0.05086015]
[1768340084426,1.00828033,94331.0,94313.0,0.1938397]
[1768340084631,1.00828033,94331.0,94314.0,0.09469807]
[1768340085438,0.010603,94330.0,94314.0,0.10530207]
[1768340086841,0.010603,94330.0,94314.0,0.09469807]
[1768340087140,0.010603,94326.0,94313.0,0.0053015]
[1768340087342,1.10408157,94331.0,94313.0,0.0053015]
[1768340087343,8.13e-05,94325.0,94313.0,0.2044447]
[1768340088135,8.13e-05,94325.0,94313.0,0.0053015]
[1768340089850,8.13e-05,94325.0,94313.0,0.09999957]
[1768340090040,0.91276,94331.0,94313.0,0.08360457]
[1768340090233,0.09544,94324.0,94313.0,0.08360457]
[1768340090539,0.09544,94324.0,94313.0,0.1774447]
[1768340090738,0.09544,94324.0,94313.0,0.08360457]
[1768340091038,0.09544,94324.0,94310.0,0.010605]
[1768340091243,0.010604,94319.0,94306.0,0.09384013]
[1768340091436,0.010604,94322.0,94306.0,0.09384013]
[1768340091745,0.09544,94324.0,94311.0,0.010605]
[1768340092137,0.09544,94324.0,94310.0,0.010605]
[1768340092433,0.09544,94324.0,94312.0,0.1991432]
[1768340092641,0.09544,94324.0,94314.0,0.010604]
[1768340093945,0.09544,94327.0,94320.0,0.1885382]
[1768340094241,0.010602,94333.0,94320.0,0.1885382]
[1768340094437,0.09544,94332.0,94320.0,0.09469807]
[1768340094839,0.010603,94331.0,94320.0,0.09469807]
[1768340096252,0.09544,94330.0,94320.0,0.09469807]
[1768340097853,0.09544,94330.0,94320.0,0.07569807]
[1768340098244,0.09548,94333.0,94321.0,0.09084231]
[1768340098444,0.106082,94333.0,94321.0,0.08023831]
[1768340098836,0.09548,94333.0,94321.0,0.09084231]
[1768340099049,0.09548,94333.0,94321.0,0.08023831]
[1768340099241,0.09548,94333.0,94318.0,0.010604]
[1768340100052,0.09548,94333.0,94318.0,0.18543869]
[1768340101151,0.09548,94333.0,94319.0,0.08013662]
[1768340102952,0.19057141,94348.0,94329.0,0.17491837]
[1768340103153,0.010602,94339.0,94329.0,0.09469807]
[1768340103454,0.010602,94337.0,94324.0,0.09469807]
[1768340105453,0.09048384,94339.0,94319.0,0.09782895]
[1768340105754,0.09048384,94337.0,94319.0,0.09782895]
[1768340105955,0.09048384,94337.0,94319.0,0.07682895]
[1768340106151,0.10108684,94330.0,94314.0,0.09548]
[1768340106957,0.010603,94330.0,94315.0,0.010604]
[1768340107652,0.010603,94328.0,94314.0,0.09548]
[1768340107952,0.010603,94325.0,94310.0,0.0953]
[1768340108159,0.010603,94325.0,94309.0,0.010605]
[1768340108358,0.010603,94325.0,94311.0,0.010605]
[1768340109159,0.09048384,94326.0,94311.0,0.010605]
[1768340109368,0.010605,94312.0,94303.0,0.09548]
[1768340109557,0.09048384,94319.0,94303.0,0.09548]
[1768340109858,0.010605,94308.0,94303.0,0.09548]
[1768340110258,0.010605,94312.0,94303.0,0.09548]
[1768340110452,0.010604,94315.0,94303.0,0.09548]
[1768340110653,0.010604,94318.0,94304.0,0.010606]
[1768340110857,0.010604,94318.0,94303.0,0.09548]
[1768340111154,0.010604,94318.0,94303.0,0.106086]
[1768340111362,0.010604,94318.0,94305.0,0.010605]
[1768340111560,0.18713799,94319.0,94305.0,0.010605]
[1768340112559,0.00015897,94320.0,94303.0,0.09548]
[1768340112560,0.09048384,94315.0,94303.0,0.09548]
[1768340113054,0.010605,94314.0,94300.0,0.18893128]
[1768340113258,0.010605,94314.0,94300.0,0.19953728]
[1768340113562,0.09048384,94319.0,94300.0,0.18893128]
[1768340113955,0.09048384,94319.0,94303.0,0.010606]
[1768340114152,0.09048384,94319.0,94300.0,0.09363128]
[1768340114457,0.09048384,94319.0,94298.0,0.07926777]
[1768340114458,0.00015897,94320.0,94308.0,0.010605]
[1768340114664,0.09665415,94328.0,94309.0,0.09363128]
[1768340114861,0.09548,94327.0,94310.0,0.09363128]
[1768340115066,0.010603,94325.0,94310.0,0.10423628]
[1768340115366,0.18596384,94327.0,94310.0,0.09363128]
[1768340115556,0.010603,94326.0,94310.0,0.09363128]
[1768340115758,0.010603,94326.0,94312.0,0.010605]
[1768340116064,0.106083,94326.0,94312.0,0.010605]
[1768340117162,0.010603,94326.0,94312.0,0.010605]
[1768340117364,0.106083,94326.0,94312.0,0.010605]
[1768340117764,0.106083,94326.0,94310.0,0.09363128]
[1768340119455,0.106083,94326.0,94311.0,0.010605]
[1768340119665,0.010603,94324.0,94311.0,0.010605]
[1768340120051,0.09548,94326.0,94311.0,0.010605]
[1768340121159,0.010603,94325.0,94311.0,0.010605]
[1768340121366,0.09548,94326.0,94310.0,0.09363128]
[1768340121665,0.09048384,94327.0,94308.0,0.07883315]
[1768340121867,0.09548,94326.0,94310.0,0.09363128]
[1768340122270,0.09548,94326.0,94315.0,0.010604]
[1768340122571,0.106083,94326.0,94312.0,0.010605]
[1768340122866,0.09548,94326.0,94314.0,0.010604]
[1768340124563,0.010601,94347.0,94317.0,0.09005871]
[1768340124759,0.09548,94346.0,94321.0,0.010604]
[1768340125160,0.09555822,94345.0,94320.0,0.09363128]
[1768340125469,0.09555822,94339.0,94324.0,0.00015906]
[1768340125670,0.09555822,94339.0,94320.0,0.10423528]
[1768340125869,0.09555822,94339.0,94320.0,0.09363128]
[1768340126073,0.09555822,94338.0,94317.0,0.09005871]
[1768340126264,0.09555822,94337.0,94320.0,0.09363128]
[1768340129169,0.09555822,94334.0,94312.0,0.09005871]
[1768340129362,0.1891895,94330.0,94312.0,0.0656627]
[1768340129765,0.09555822,94330.0,94315.0,0.010604]
[1768340129960,0.10616122,94330.0,94314.0,0.010604]
[1768340130161,0.10616122,94330.0,94312.0,0.0656627]
[1768340130971,0.09555822,94330.0,94315.0,0.010604]
[1768340131167,0.09555822,94328.0,94312.0,0.010605]
[1768340131374,0.09555822,94327.0,94312.0,0.010605]
[1768340131871,0.09555822,94327.0,94314.0,0.010604]
[1768340132068,0.09363128,94340.0,94312.0,0.010605]
[1768340132069,0.09555822,94324.0,94312.0,0.010605]
[1768340133067,0.09555822,94328.0,94310.0,0.09363128]
[1768340133273,0.10616122,94328.0,94315.0,0.010604]
[1768340134072,0.09555822,94328.0,94315.0,0.010604]
[1768340134265,0.09555822,94328.0,94317.0,0.010604]
[1768340135776,0.09555822,94328.0,94310.0,0.09363128]
[1768340136473,0.09555822,94328.0,94321.0,0.010604]
[1768340136672,0.00015906,94331.0,94321.0,0.010604]
[1768340137174,0.00015906,94331.0,94320.0,0.09363128]
[1768340137375,0.00015906,94331.0,94322.0,0.010604]
[1768340137563,0.09783482,94345.0,94324.0,0.20156673]
[1768340137876,0.010602,94337.0,94330.0,0.09363128]
[1768340138076,0.010602,94337.0,94327.0,0.09363128]
[1768340139176,0.05253187,94337.0,94330.0,0.0497466]
[1768340139378,0.05248697,94337.0,94327.0,0.14471647]
[1768340139873,0.010602,94337.0,94327.0,0.09363128]
[1768340140068,0.05248697,94337.0,94327.0,0.14471647]
[1768340140469,0.0518899,94337.0,94327.0,0.14407858]
[1768340140665,0.0412879,94337.0,94327.0,0.14407858]
[1768340140879,0.010602,94340.0,94327.0,0.09363128]
[1768340141180,0.09783482,94342.0,94330.0,0.09363128]
[1768340141478,0.04195997,94337.0,94330.0,0.09363128]
[1768340141676,0.04195997,94337.0,94327.0,0.14478558]
[1768340141979,0.13324039,94376.0,94338.0,0.19096373]
[1768340141980,0.0106,94356.0,94338.0,0.19096373]
[1768340142181,0.04725922,94353.0,94340.0,0.09363128]
[1768340142676,0.0106,94352.0,94340.0,0.09363128]
[1768340143281,0.04153978,94352.0,94340.0,0.14422398]
[1768340143472,0.04153978,94352.0,94340.0,0.0505927]
[1768340143878,0.1393746,94352.0,94340.0,0.0505927]
[1768340144478,0.14001448,94352.0,94340.0,0.0507395]
[1768340144882,0.09783482,94351.0,94340.0,0.0507395]
[1768340145774,0.09783482,94351.0,94337.0,0.09563906]
[1768340145980,0.13974483,94351.0,94337.0,0.14696233]
[1768340146483,0.09783482,94347.0,94332.0,0.09548]
[1768340146687,0.09783482,94347.0,94332.0,0.06193697]
[1768340146688,0.09783482,94346.0,94332.0,0.06193697]
[1768340146886,0.09783482,94346.0,94332.0,0.05133497]
[1768340147186,0.09783482,94346.0,94331.0,0.09548]
[1768340147386,0.09783482,94345.0,94332.0,0.05133497]
[1768340147882,0.13945265,94345.0,94332.0,0.05125625]
[1768340148085,0.09783482,94352.0,94331.0,0.09548]
[1768340148387,0.09642787,94352.0,94331.0,0.09548]
[1768340148583,0.19426269,94352.0,94337.0,0.010602]
[1768340148890,0.04271925,94345.0,94337.0,0.05017106]
[1768340149886,0.04271925,94345.0,94334.0,0.010602]
[1768340150090,0.19426269,94352.0,94334.0,0.010602]
[1768340150286,0.09783482,94351.0,94334.0,0.010602]
[1768340151988,0.09783482,94350.0,94334.0,0.010602]
[1768340153393,0.09783482,94350.0,94336.0,0.010602]
[1768340153588,0.09783482,94350.0,94338.0,0.010602]
[1768340153788,0.09783482,94350.0,94335.0,0.010602]
[1768340154594,0.09783482,94350.0,94332.0,0.0837427]
[1768340154595,0.09783482,94349.0,94332.0,0.010602]
[1768340154999,0.09783482,94349.0,94335.0,0.010602]
[1768340155189,0.09783482,94349.0,94332.0,0.010602]
[1768340155592,0.00529925,94353.0,94339.0,0.09363128]
[1768340155789,0.09642787,94362.0,94343.0,0.19605531]
[1768340156098,0.09642787,94362.0,94343.0,0.10242403]
[1768340156301,0.09642787,94362.0,94343.0,0.010601]
[1768340156501,0.09642787,94362.0,94345.0,0.010601]
[1768340157199,0.11023007,94362.0,94345.0,0.010601]
[1768340157400,0.09363128,94360.0,94342.0,0.010601]
[1768340157601,0.09642787,94359.0,94342.0,0.010601]
[1768340157792,0.09783482,94357.0,94340.0,0.09363128]
[1768340158102,0.09642787,94356.0,94340.0,0.09363128]
[1768340158302,0.09783482,94354.0,94340.0,0.09363128]
[1768340158502,0.09783482,94354.0,94339.0,0.010602]
[1768340158703,0.19327482,94354.0,94339.0,0.010602]
[1768340158904,0.19426269,94353.0,94338.0,0.010602]
[1768340159204,0.19426269,94352.0,94338.0,0.010602]
[1768340159406,0.09783482,94351.0,94335.0,0.010602]
[1768340159800,0.09544,94354.0,94332.0,0.010602]
[1768340159801,0.19426269,94349.0,94332.0,0.010602]
[1768340160003,0.09642787,94347.0,94331.0,0.010602]
[1768340160195,0.09783482,94346.0,94333.0,0.010602]
[1768340160396,0.09642787,94345.0,94333.0,0.010602]
[1768340160806,0.19426269,94345.0,94333.0,0.010602]
[1768340161106,0.19426269,94345.0,94330.0,0.08623328]
[1768340161301,0.19426269,94345.0,94331.0,0.010603]
[1768340161894,0.09783482,94344.0,94331.0,0.010603]
[1768340162706,0.09783482,94343.0,94330.0,0.09363128]
[1768340162898,0.010602,94341.0,94328.0,0.010603]
[1768340163302,0.20486469,94341.0,94328.0,0.010603]
[1768340163501,0.09783482,94340.0,94328.0,0.010603]
[1768340163797,0.09783482,94339.0,94326.0,0.010603]
[1768340164005,0.10843682,94338.0,94320.0,0.09363128]
[1768340164307,0.10843682,94338.0,94320.0,0.10363128]
[1768340164506,0.10843682,94338.0,94320.0,0.09363128]
[1768340164803,0.09304811,94334.0,94316.0,0.09544]
[1768340165006,0.09304811,94336.0,94326.0,0.010603]
[1768340166002,0.10365011,94335.0,94323.0,0.010603]
[1768340166406,0.09304811,94332.0,94310.0,0.27651699]
[1768340166607,0.1877353,94332.0,94320.0,0.010604]
[1768340166806,0.09304811,94331.0,94320.0,0.010604]
[1768340167510,0.09304811,94331.0,94322.0,0.010604]
[1768340167708,0.09468719,94332.0,94322.0,0.010604]
[1768340168714,0.09304811,94323.0,94299.0,0.09268504]
[1768340169011,0.09304811,94320.0,94301.0,0.09268504]
[1768340169212,0.09304811,94320.0,94308.0,0.010605]
[1768340169614,0.09304811,94320.0,94302.0,0.07729004]
[1768340169806,0.09304811,94320.0,94308.0,0.010605]
[1768340170310,0.10365111,94326.0,94311.0,0.010605]
[1768340170510,0.10365111,94324.0,94302.0,0.09020067]
[1768340170710,0.10365111,94324.0,94310.0,0.010605]
[1768340170911,0.10365111,94324.0,94302.0,0.09020067]
[1768340171412,0.10365211,94322.0,94302.0,0.09]
[1768340171617,0.09468719,94323.0,94299.0,0.09268504]
[1768340171618,0.010604,94319.0,94299.0,0.09268504]
[1768340171808,0.106044,94319.0,94300.0,0.09268504]
[1768340172002,0.106044,94319.0,94301.0,0.09268504]
[1768340172206,0.09544,94319.0,94305.0,0.010605]
[1768340173116,0.09544,94319.0,94301.0,0.09268504]
[1768340173314,0.09468719,94317.0,94293.0,0.00530262]
[1768340173513,0.09544,94319.0,94287.0,0.010608]
[1768340173514,0.09304811,94303.0,94287.0,0.010608]
[1768340173811,0.09304811,94305.0,94282.0,0.09020067]
[1768340174016,0.09304811,94303.0,94281.0,0.09268504]
[1768340174323,0.09304811,94303.0,94288.0,0.010607]
[1768340174615,0.09304811,94303.0,94290.0,0.010607]
[1768340176122,0.09304811,94293.0,94273.0,0.00530375]
[1768340176309,0.09304811,94291.0,94277.0,0.2]
[1768340176617,0.09304811,94291.0,94277.0,0.05]
[1768340176813,0.09304811,94291.0,94277.0,0.060609]
[1768340177013,0.010607,94293.0,94277.0,0.060609]
[1768340177218,0.09548,94296.0,94279.0,0.010608]
[1768340177519,0.09548,94296.0,94278.0,0.0838349]
[1768340178012,0.09548,94296.0,94281.0,0.010608]
[1768340178213,0.1049996,94304.0,94288.0,0.010607]
[1768340178513,0.0943936,94310.0,94281.0,0.09531232]
[1768340178722,0.09548,94309.0,94287.0,0.09531232]
[1768340178921,0.010605,94308.0,94289.0,0.010607]
[1768340179420,0.010605,94308.0,94291.0,0.010607]
[1768340180005,0.00015906,94309.0,94291.0,0.18553922]
[1768340180322,0.00015906,94309.0,94297.0,0.10591832]
[1768340180616,0.00015906,94309.0,94299.0,0.010606]
[1768340180822,0.00015906,94309.0,94298.0,0.0902269]
[1768340182820,0.00015906,94309.0,94298.0,0.1008329]
[1768340183719,0.00015906,94309.0,94298.0,0.0902269]
[1768340184021,0.010605,94307.0,94286.0,0.09531232]
[1768340184207,0.010606,94297.0,94287.0,0.0902269]
[1768340184406,0.010606,94297.0,94287.0,0.1702269]
[1768340184612,0.010606,94297.0,94287.0,0.0902269]
[1768340184813,0.09455266,94309.0,94287.0,0.0902269]
[1768340185015,0.010605,94308.0,94287.0,0.0762269]
[1768340185332,0.010607,94289.0,94282.0,0.06914132]
[1768340185526,0.0943936,94295.0,94277.0,0.023829]
[1768340185825,0.18778703,94295.0,94277.0,0.023829]
[1768340186025,0.09339343,94292.0,94277.0,0.023829]
[1768340186220,0.0943936,94299.0,94277.0,0.023829]
[1768340186919,0.0943936,94299.0,94278.0,0.010609]
[1768340187222,0.0943936,94299.0,94279.0,0.010608]
[1768340189425,0.0943936,94299.0,94277.0,0.023829]
[1768340189618,0.0943936,94298.0,94277.0,0.023829]
[1768340189817,0.0943936,94298.0,94277.0,0.034438]
[1768340190019,0.09548,94302.0,94277.0,0.023829]
[1768340190020,0.09339343,94296.0,94277.0,0.023829]
[1768340190321,0.0943936,94295.0,94273.0,0.00530375]
[1768340190523,0.09339343,94292.0,94273.0,0.00530375]
[1768340190723,0.18778703,94291.0,94273.0,0.00530375]
[1768340191122,0.0943936,94297.0,94275.0,0.09531232]
[1768340191319,0.0943936,94297.0,94275.0,0.19614822]
[1768340192226,0.0943936,94297.0,94275.0,0.18553922]
[1768340192415,0.0943936,94297.0,94276.0,0.010609]
[1768340193025,0.0943936,94297.0,94278.0,0.010609]
[1768340193324,0.09548,94299.0,94283.0,0.010608]
[1768340193523,0.09548,94299.0,94284.0,0.010608]
[1768340194024,0.09548,94299.0,94280.0,0.17553922]
[1768340194725,0.28326703,94299.0,94277.0,0.010609]
[1768340194919,0.28326703,94299.0,94279.0,0.010608]
[1768340196224,0.32587838,94299.0,94279.0,0.010608]
[1768340196426,0.0951817,94296.0,94276.0,0.010609]
[1768340196828,0.18703382,94296.0,94276.0,0.010609]
[1768340197128,0.0951817,94295.0,94276.0,0.010609]
[1768340197719,0.13797253,94295.0,94276.0,0.06057903]
[1768340197914,0.0951817,94294.0,94276.0,0.06057903]
[1768340198220,0.0951817,94292.0,94276.0,0.06057903]
[1768340198417,0.0951817,94292.0,94276.0,0.04997003]
[1768340198621,0.04279083,94295.0,94276.0,0.04997003]
[1768340198622,0.18703382,94289.0,94276.0,0.04999651]
[1768340198930,0.09185212,94287.0,94273.0,0.00530375]
[1768340199120,0.18703382,94286.0,94273.0,0.00530375]
[1768340199315,0.0951817,94283.0,94273.0,0.05580038]
[1768340199520,0.09185212,94282.0,94269.0,0.01831261]
[1768340200636,0.13310451,94282.0,94269.0,0.06060025]
[1768340201022,0.13328943,94282.0,94269.0,0.06060025]
[1768340201326,0.09203704,94282.0,94269.0,0.00931261]
[1768340201523,0.13390431,94282.0,94269.0,0.06061488]
[1768340202332,0.09203704,94280.0,94269.0,0.06061488]
[1768340202633,0.13449819,94278.0,94265.0,0.08689949]
[1768340202933,0.09203704,94278.0,94265.0,0.02569374]
[1768340203133,0.09185212,94277.0,94265.0,0.07629817]
[1768340203334,0.13432055,94277.0,94265.0,0.07629817]
[1768340203834,0.13432055,94277.0,94265.0,0.05060443]
[1768340204127,0.010609,94275.0,94265.0,0.05060443]
[1768340204537,0.010609,94275.0,94258.0,0.106131]
[1768340204727,0.010609,94275.0,94265.0,0.05081739]
[1768340205237,0.13412563,94277.0,94265.0,0.05081739]
[1768340206037,0.13368713,94277.0,94265.0,0.04969582]
[1768340206534,8.076e-05,94276.0,94265.0,0.04969582]
[1768340206730,0.010609,94274.0,94259.0,0.010611]
[1768340206933,0.00010048,94273.0,94259.0,0.010611]
[1768340207134,0.00010048,94272.0,94259.0,0.010611]
[1768340208238,0.01070948,94272.0,94258.0,0.09552]
[1768340208434,0.01061,94270.0,94258.0,0.07752]
[1768340208642,0.01061,94268.0,94258.0,0.07752]
[1768340209137,0.00010048,94269.0,94259.0,0.010611]
[1768340209344,0.00010048,94269.0,94261.0,0.01061]
[1768340209545,0.09185212,94282.0,94258.0,0.16903396]
[1768340209743,0.09185212,94275.0,94258.0,0.07752]
[1768340210144,0.01061,94270.0,94258.0,0.07752]
[1768340210345,0.09185212,94275.0,94258.0,0.07752]